{"text_format":"3","workbook":"xlsx","n_sheets":2,"sheets":["Inicio","Presupuesto para la boda"],"read":"whole","date_system":"1900"}

{"sheet":"Inicio","index":0,"n_rows":7,"n_cols":2,"rows_kept":7}
[null,"ACERCA DE ESTA PLANTILLA"]
[null,"Use esta plantilla para registrar los gastos reales de una boda en varias categorías y realizar un seguimiento de ellos en comparación con los importes presupuestados."]
[null,"Escriba los gastos de ropa, decoraciones, regalos, flores, música, fotografía, recepción, diseño de fondo, transporte y artículos varios en las respectivas tablas."]
[null,"El total de gastos estimados y el total de gastos reales se calculan automáticamente."]
[null,"Nota: "]
[null,"Se han proporcionado instrucciones adicionales en la columna A de la hoja de cálculo PRESUPUESTO DE BODA. Este texto se ha ocultado de forma intencionada. Para eliminar el texto, seleccione la columna A y, a continuación, ELIMINAR. Para mostrar el texto, seleccione la columna A y, a continuación, cambie el color de fuente."]
[null,"Para obtener más información sobre las tablas, presione las teclas MAYÚS y F10 dentro de una tabla, seleccione la opción TABLA y, después, TEXTO ALTERNATIVO."]

{"sheet":"Presupuesto para la boda","index":1,"n_rows":93,"n_cols":4,"rows_kept":93,"merged":[[0,1,0,3],[2,1,2,3],[6,1,6,3],[15,1,15,3],[25,1,25,3],[34,1,34,3],[43,1,43,3],[50,1,50,3],[59,1,59,3],[68,1,68,3],[77,1,77,3],[85,1,85,3]]}
[null,"PRESUPUESTO PARA LA BODA"]
[]
[null,"GASTOS TOTALES "]
[null,"Artículo ","Estimado","Real"]
[null,"Gastos totales ",{"$f":"SUM(Ropa[[#Totals],[Estimado]],Decoración[[#Totals],[Estimado]],Regalos[[#Totals],[Estimado]],Flores[[#Totals],[Estimado]],Música[[#Totals],[Estimado]],Fotografía[[#Totals],[Estimado]],Recepción[[#Totals],[Estimado]],PapeleríaEImpresión[[#Totals],[Estimado]],Transporte[[#Totals],[Estimado]],OtrosGastos[[#Totals],[Estimado]])","v":0},{"$f":"SUM(Ropa[[#Totals],[Real]],Decoración[[#Totals],[Real]],Regalos[[#Totals],[Real]],Flores[[#Totals],[Real]],Música[[#Totals],[Real]],Fotografía[[#Totals],[Real]],Recepción[[#Totals],[Real]],PapeleríaEImpresión[[#Totals],[Real]],Transporte[[#Totals],[Real]],OtrosGastos[[#Totals],[Real]],)","v":0}]
[]
[null,"ROPA"]
[null,"Artículo ","Estimado","Real"]
[null,"Anillo de compromiso"]
[null,"Alianzas"]
[null,"Vestido de la novia"]
[null,"Velo/tocado"]
[null,"Otros:"]
[null,"Total de ropa",{"$f":"SUBTOTAL(109,Ropa[Estimado])","v":0},{"$f":"SUBTOTAL(109,Ropa[Real])","v":0}]
[]
[null,"DECORACIONES"]
[null,"Artículo ","Estimado","Real"]
[null,"Decoración para los bancos de la iglesia u otros asientos"]
[null,"Centros para las mesas(excluidas las flores)"]
[null,"Velas"]
[null,"Iluminación"]
[null,"Globos"]
[null,"Otros:"]
[null,"Total de decoración",{"$f":"SUBTOTAL(109,Decoración[Estimado])","v":0},{"$f":"SUBTOTAL(109,Decoración[Real])","v":0}]
[]
[null,"REGALOS"]
[null,"Artículo ","Estimado","Real"]
[null,"Asistentes"]
[null,"Novio y novia"]
[null,"Padres"]
[null,"Lectores y otros participantes"]
[null,"Otros:"]
[null,"Total de regalos",{"$f":"SUBTOTAL(109,Regalos[Estimado])","v":0},{"$f":"SUBTOTAL(109,Regalos[Real])","v":0}]
[]
[null,"FLORES"]
[null,"Artículo ","Estimado","Real"]
[null,"Ramos"]
[null,"Flor del novio"]
[null,"Ramilletes"]
[null,"Ceremonia"]
[null,"Otros:"]
[null,"Total de flores",{"$f":"SUBTOTAL(109,Flores[Estimado])","v":0},{"$f":"SUBTOTAL(109,Flores[Real])","v":0}]
[]
[null,"MÚSICA"]
[null,"Artículo ","Estimado","Real"]
[null,"Músicos para la ceremonia"]
[null,"Banda o DJ para la recepción"]
[null,"Otros:"]
[null,"Total de música",{"$f":"SUBTOTAL(109,Música[Estimado])","v":0},{"$f":"SUBTOTAL(109,Música[Real])","v":0}]
[]
[null,"FOTOGRAFÍA"]
[null,"Artículo ","Estimado","Real"]
[null,"Oficiales"]
[null,"Espontáneas"]
[null,"Impresiones adicionales"]
[null,"Álbumes de fotos"]
[null,"Otros:"]
[null,"Total de fotografía",{"$f":"SUBTOTAL(109,Fotografía[Estimado])","v":0},{"$f":"SUBTOTAL(109,Fotografía[Real])","v":0}]
[]
[null,"RECEPCIÓN "]
[null,"Artículo ","Estimado","Real"]
[null,"Gastos de habitaciones o sala"]
[null,"Mesas y sillas"]
[null,"Comida"]
[null,"Mantelería"]
[null,"Otros:"]
[null,"Total de recepción (excepto música y decoraciones)",{"$f":"SUBTOTAL(109,Recepción[Estimado])","v":0},{"$f":"SUBTOTAL(109,Recepción[Real])","v":0}]
[]
[null,"IMPRESIÓN O PAPELERÍA"]
[null,"Artículo ","Estimado","Real"]
[null,"Invitaciones"]
[null,"Anuncios"]
[null,"Tarjetas de agradecimiento"]
[null,"Artículos de papelería personal"]
[null,"Otros:"]
[null,"Total de impresión o papelería",{"$f":"SUBTOTAL(109,PapeleríaEImpresión[Estimado])","v":0},{"$f":"SUBTOTAL(109,PapeleríaEImpresión[Real])","v":0}]
[]
[null,"TRANSPORTE"]
[null,"Artículo ","Estimado","Real"]
[null,"Limusina/carruaje"]
[null,"Aparcamiento"]
[null,"Taxis"]
[null,"Otros:"]
[null,"Total de transporte",{"$f":"SUBTOTAL(109,Transporte[Estimado])","v":0},{"$f":"SUBTOTAL(109,Transporte[Real])","v":0}]
[]
[null,"OTROS GASTOS"]
[null,"Artículo ","Estimado","Real"]
[null,"Oficiante"]
[null,"Cuota de la iglesia o del sitio de la ceremonia"]
[null,"Coordinador de la boda"]
[null,"Cena de ensayo"]
[null,"Otros:"]
[null,"Total de otros gastos",{"$f":"SUBTOTAL(109,OtrosGastos[Estimado])","v":0},{"$f":"SUBTOTAL(109,OtrosGastos[Real])","v":0}]